[Event "European-ch Seniors 2018"]
[Site "Drammen"]
[Date "2018.08.11"]
[Round "8"]
[White "Zimmermann, Luc"]
[Black "Blomstrom, Lars"]
[Result "1-0"]
[ECO "B18"]
[WhiteElo "2184"]
[BlackElo "2167"]
[Annotator "NA"]
[PlyCount "101"]
[EventDate "2018.08.04"]
[EventType "swiss"]
[EventCountry "NOR"]
[SourceTitle "playchess.com"]
[Source "ChessBase"]
[SourceQuality "1"]
[TimeControl "40/5400+30:1800+30"]

1. e4 {[%emt 0:00:00]} c6 {[%emt 0:00:07]} 2. d4 {[%emt 0:00:00]} d5 {[%emt 0:00:04]} 3. Nc3 {[%emt 0:00:00]} dxe4 {[%emt 0:00:08]} 4. Nxe4 {[%emt 0:00:00]} Bf5 {[%emt 0:00:13]} 5. Ng3 {[%emt 0:00:09]} Bg6 {[%emt 0:00:02]} 6. Nh3 {[%emt 0:00:14]} Nf6 {[%emt 0:00:54]} 7. Nf4 {[%emt 0:00:26]} e5 {[%emt 0:00:44]} 8. Nxg6 {[%emt 0:00:24]} hxg6 {[%emt 0:00:07]} 9. dxe5 {[%emt 0:00:51]} Qa5+ {[%emt 0:02:41]} 10. Bd2 {[%emt 0:03:24]} Qxe5+ {[%emt 0:00:05]} 11. Qe2 {[%emt 0:00:14]} Qxe2+ {[%emt 0:07:20]} 12. Bxe2 {[%emt 0:14:47]} Nbd7 {[%emt 0:00:22]} 13. O-O {[%emt 0:09:53]} O-O-O {[%emt 0:12:52]} 14. Rad1 {[%emt 0:09:43]} Bc5 {[%emt 0:27:07]} 15. b4 {[%emt 0:17:38]} Bd4 {[%emt 0:03:19]} 16. c3 {[%emt 0:05:54]} Bb6 {[%emt 0:02:09]} 17. a4 {[%emt 0:06:47]} a5 {[%emt 0:02:41]} 18. Bg5 {[%emt 0:07:42]} Rde8 {[%emt 0:03:27]} 19. Bc4 {[%emt 0:00:29]} Rhf8 {[%emt 0:11:13]} 20. h3 {[%emt 0:03:11]} Ne5 {[%emt 0:07:38]} 21. Bb3 {[%emt 0:00:05]} Nh7 {[%emt 0:01:51]} 22. Bc1 {[%emt 0:02:17]} f5 {[%emt 0:04:54]} 23. Ne2 {[%emt 0:06:00]} Nf3+ {[%emt 0:01:03]} 24. gxf3 {[%emt 0:00:02]} Rxe2 {[%emt 0:00:04]} 25. Rd2 {[%emt 0:04:04]} Rxd2 {[%emt 0:00:56]} 26. Bxd2 {[%emt 0:00:01]} Rd8 {[%emt 0:02:10]} 27. Rd1 {[%emt 0:00:21]} Nf8 {[%emt 0:02:29]} 28. Bf4 {[%emt 0:02:27]} Rxd1+ {[%emt 0:00:59]} 29. Bxd1 {[%emt 0:00:02]} axb4 {[%emt 0:01:20]} 30. cxb4 {[%emt 0:03:40]} Bd4 {[%emt 0:02:02]} 31. Bb3 {[%emt 0:01:28]} Kd7 {[%emt 0:00:05]} 32. Bd2 {[%emt 0:01:06]} Ne6 {[%emt 0:00:43]} 33. Kf1 {[%emt 0:01:55]} Be5 {[%emt 0:00:21]} 34. Be3 {[%emt 0:01:06]} Kd6 {[%emt 0:02:41]} 35. Bc4 {[%emt 0:00:35]} f4 {[%emt 0:00:36]} 36. Bd2 {[%emt 0:00:25]} Nd4 {[%emt 0:00:15]} 37. Kg2 {[%emt 0:00:18]} g5 {[%emt 0:00:54]} 38. Bc1 {[%emt 0:00:40]} Nf5 {[%emt 0:01:03]} 39. Ba3 {[%emt 0:00:33]} Nh4+ {[%emt 0:00:36]} 40. Kf1 {[%emt 0:00:00]} Nxf3 {[%emt 0:00:00]} 41. b5+ {[%emt 0:12:00]} c5 {[%emt 0:12:43]} 42. Ke2 {[%emt 0:01:55]} Ng1+ {[%emt 0:13:06]} 43. Kf1 {[%emt 0:00:01]} Nf3 {[%emt 0:00:10]} 44. Ke2 {[%emt 0:00:02]} Nd4+ {[%emt 0:00:31]} 45. Kd3 {[%emt 0:00:10]} b6 {[%emt 0:00:08]} 46. Bc1 {[%emt 0:03:24]} Nf3 {[%emt 0:00:26]} 47. Ke4 {[%emt 0:00:26]} Nh4 {[%emt 0:05:19]} 48. Bd2 {[%emt 0:02:53]} Ng6 {[%emt 0:01:25]} 49. a5 {[%emt 0:01:32]} bxa5 {[%emt 0:00:06]} 50. Bxa5 {[%emt 0:00:27]} Ke7 {[%emt 0:01:50]} 51. Kf5 {[%emt 0:00:57]} 1-0

[Event "European-ch Seniors 2018"]
[Site "Drammen"]
[Date "2018.08.11"]
[Round "8"]
[White "Gruzmann, Boris"]
[Black "Schouten, Nico"]
[Result "1-0"]
[ECO "C62"]
[WhiteElo "2183"]
[BlackElo "2126"]
[Annotator "NA"]
[PlyCount "135"]
[EventDate "2018.08.04"]
[EventType "swiss"]
[EventCountry "NOR"]
[SourceTitle "playchess.com"]
[Source "ChessBase"]
[SourceQuality "1"]
[TimeControl "40/5400+30:1800+30"]

1. e4 {[%emt 0:00:00]} e5 {[%emt 0:00:00]} 2. Nf3 {[%emt 0:00:00]} Nc6 {[%emt 0:00:00]} 3. Bb5 {[%emt 0:00:02]} d6 {[%emt 0:00:00]} 4. d4 {[%emt 0:00:44]} exd4 {[%emt 0:00:00]} 5. Nxd4 {[%emt 0:00:18]} Bd7 {[%emt 0:00:00]} 6. Nc3 {[%emt 0:01:02]} Nf6 {[%emt 0:00:14]} 7. O-O {[%emt 0:17:28]} Be7 {[%emt 0:00:07]} 8. h3 {[%emt 0:07:03]} Nxd4 {[%emt 0:03:15]} 9. Bxd7+ {[%emt 0:02:12]} Qxd7 {[%emt 0:00:12]} 10. Qxd4 {[%emt 0:00:08]} O-O {[%emt 0:00:30]} 11. Bg5 {[%emt 0:01:03]} Rfe8 {[%emt 0:01:02]} 12. Rad1 {[%emt 0:04:16]} Qc6 {[%emt 0:01:18]} 13. Rfe1 {[%emt 0:07:53]} Nd7 {[%emt 0:05:04]} 14. Bxe7 {[%emt 0:01:00]} Rxe7 {[%emt 0:00:07]} 15. Re3 {[%emt 0:02:20]} f6 {[%emt 0:39:46]} 16. Nd5 {[%emt 0:06:50]} Rf7 {[%emt 0:00:03]} 17. Rc3 {[%emt 0:02:58]} Nc5 {[%emt 0:00:02]} 18. b4 {[%emt 0:01:44]} Ne6 {[%emt 0:00:04]} 19. Rxc6 {[%emt 0:01:22]} Nxd4 {[%emt 0:02:15]} 20. Rxc7 {[%emt 0:00:19]} Rxc7 {[%emt 0:07:31]} 21. Nxc7 {[%emt 0:00:09]} Ne2+ {[%emt 0:00:36]} 22. Kf1 {[%emt 0:01:34]} Rc8 {[%emt 0:00:02]} 23. Kxe2 {[%emt 0:00:28]} Rxc7 {[%emt 0:00:02]} 24. Kd3 {[%emt 0:01:15]} Kf7 {[%emt 0:02:44]} 25. c4 {[%emt 0:02:36]} Ke6 {[%emt 0:00:08]} 26. f4 {[%emt 0:01:51]} h5 {[%emt 0:01:23]} 27. g4 {[%emt 0:05:16]} Rc8 {[%emt 0:02:54]} 28. f5+ {[%emt 0:03:07]} Kf7 {[%emt 0:02:30]} 29. Rg1 {[%emt 0:01:12]} hxg4 {[%emt 0:01:13]} 30. Rxg4 {[%emt 0:03:57]} Rh8 {[%emt 0:07:36]} 31. Rg3 {[%emt 0:03:26]} a5 {[%emt 0:05:34]} 32. a3 {[%emt 0:03:20]} axb4 {[%emt 0:00:44]} 33. axb4 {[%emt 0:00:06]} Ra8 {[%emt 0:00:04]} 34. Kd4 {[%emt 0:00:14]} Ra1 {[%emt 0:00:30]} 35. c5 {[%emt 0:03:53]} dxc5+ {[%emt 0:02:40]} 36. bxc5 {[%emt 0:00:08]} Ra4+ {[%emt 0:00:40]} 37. Kd5 {[%emt 0:00:12]} Rb4 {[%emt 0:00:02]} 38. e5 {[%emt 0:01:27]} fxe5 {[%emt 0:00:06]} 39. Kxe5 {[%emt 0:00:07]} Rc4 {[%emt 0:02:19]} 40. Kd5 {[%emt 0:00:00]} Rc1 {[%emt 0:00:00]} 41. Rb3 {[%emt 0:06:32]} Rd1+ {[%emt 0:01:43]} 42. Ke5 {[%emt 0:01:03]} Rd7 {[%emt 0:00:15]} 43. Rb6 {[%emt 0:00:24]} Kf8 {[%emt 0:08:55]} 44. h4 {[%emt 0:03:55]} Kg8 {[%emt 0:07:46]} 45. h5 {[%emt 0:05:46]} Re7+ {[%emt 0:03:53]} 46. Re6 {[%emt 0:00:35]} Rf7 {[%emt 0:02:21]} 47. h6 {[%emt 0:01:27]} gxh6 {[%emt 0:00:32]} 48. Rxh6 {[%emt 0:00:24]} Rc7 {[%emt 0:00:03]} 49. Rg6+ {[%emt 0:01:56]} Kf7 {[%emt 0:00:20]} 50. Kd6 {[%emt 0:00:31]} Rc8 {[%emt 0:00:53]} 51. Kd5 {[%emt 0:02:30]} Rd8+ {[%emt 0:05:52]} 52. Rd6 {[%emt 0:00:23]} Rb8 {[%emt 0:00:11]} 53. Rd7+ {[%emt 0:01:59]} Kf6 {[%emt 0:00:42]} 54. Kd6 {[%emt 0:01:05]} Kxf5 {[%emt 0:00:45]} 55. Kc7 {[%emt 0:00:41]} Ra8 {[%emt 0:00:13]} 56. Kxb7 {[%emt 0:00:19]} Ra1 {[%emt 0:00:02]} 57. Re7 {[%emt 0:00:14]} Rb1+ {[%emt 0:02:47]} 58. Kc7 {[%emt 0:00:10]} Kf6 {[%emt 0:00:33]} 59. Re2 {[%emt 0:00:20]} Rb3 {[%emt 0:00:25]} 60. c6 {[%emt 0:00:10]} Kf7 {[%emt 0:00:51]} 61. Kd7 {[%emt 0:00:17]} Rd3+ {[%emt 0:00:06]} 62. Kc8 {[%emt 0:00:37]} Rc3 {[%emt 0:00:15]} 63. c7 {[%emt 0:00:09]} Rb3 {[%emt 0:00:01]} 64. Re4 {[%emt 0:05:55]} Rb2 {[%emt 0:01:58]} 65. Kd7 {[%emt 0:01:36]} Rd2+ {[%emt 0:00:04]} 66. Kc6 {[%emt 0:01:09]} Rc2+ {[%emt 0:00:03]} 67. Kb6 {[%emt 0:00:21]} Rc1 {[%emt 0:00:04]} 68. Rb4 {[%emt 0:00:30]} 1-0

[Event "European-ch Seniors 2018"]
[Site "Drammen"]
[Date "2018.08.11"]
[Round "8"]
[White "Gayson, Peter M"]
[Black "Holst, Conny"]
[Result "1/2-1/2"]
[ECO "B73"]
[WhiteElo "2150"]
[BlackElo "2147"]
[Annotator "NA"]
[PlyCount "55"]
[EventDate "2018.08.04"]
[EventType "swiss"]
[EventCountry "NOR"]
[SourceTitle "playchess.com"]
[Source "ChessBase"]
[SourceQuality "1"]
[TimeControl "40/5400+30:1800+30"]

1. e4 {[%emt 0:00:00]} c5 {[%emt 0:00:00]} 2. Nf3 {[%emt 0:00:00]} d6 {[%emt 0:00:18]} 3. d4 {[%emt 0:00:04]} cxd4 {[%emt 0:00:07]} 4. Nxd4 {[%emt 0:00:07]} Nf6 {[%emt 0:00:23]} 5. Nc3 {[%emt 0:00:08]} Nc6 {[%emt 0:00:30]} 6. f4 {[%emt 0:00:24]} g6 {[%emt 0:00:40]} 7. Be2 {[%emt 0:00:41]} Bg7 {[%emt 0:02:38]} 8. Be3 {[%emt 0:00:31]} O-O {[%emt 0:00:13]} 9. O-O {[%emt 0:00:10]} Qb6 {[%emt 0:06:24]} 10. Qd3 {[%emt 0:03:00]} Ng4 {[%emt 0:04:47]} 11. Nd5 {[%emt 0:01:26]} Bxd4 {[%emt 0:12:32]} 12. Bxg4 {[%emt 0:01:25]} Bxe3+ {[%emt 0:01:47]} 13. Qxe3 {[%emt 0:01:36]} Qxe3+ {[%emt 0:00:22]} 14. Nxe3 {[%emt 0:00:08]} Bxg4 {[%emt 0:00:39]} 15. Nxg4 {[%emt 0:00:08]} Rac8 {[%emt 0:07:21]} 16. c3 {[%emt 0:00:49]} Kg7 {[%emt 0:10:00]} 17. Ne3 {[%emt 0:04:21]} Na5 {[%emt 0:03:18]} 18. Rf2 {[%emt 0:17:08]} Nc4 {[%emt 0:03:54]} 19. Nd5 {[%emt 0:00:55]} e6 {[%emt 0:00:44]} 20. Nb4 {[%emt 0:02:00]} Na5 {[%emt 0:06:42]} 21. Rd1 {[%emt 0:04:03]} Rfd8 {[%emt 0:00:49]} 22. Rfd2 {[%emt 0:07:24]} Nc4 {[%emt 0:00:43]} 23. Re2 {[%emt 0:01:12]} a5 {[%emt 0:07:00]} 24. Nd3 {[%emt 0:03:05]} b5 {[%emt 0:00:26]} 25. Ne1 {[%emt 0:11:48]} Nb6 {[%emt 0:03:19]} 26. Red2 {[%emt 0:07:45]} d5 {[%emt 0:02:09]} 27. Rd4 {[%emt 0:12:03]} Kf8 {[%emt 0:04:39]} 28. Kf2 {[%emt 0:03:41]} 1/2-1/2

[Event "European-ch Seniors 2018"]
[Site "Drammen"]
[Date "2018.08.11"]
[Round "8"]
[White "Mednikova, Svetlana"]
[Black "Birkholz, Olga"]
[Result "1/2-1/2"]
[ECO "B00"]
[WhiteElo "2110"]
[BlackElo "2048"]
[Annotator "NA"]
[PlyCount "74"]
[EventDate "2018.08.04"]
[EventType "swiss"]
[EventCountry "NOR"]
[SourceTitle "playchess.com"]
[Source "ChessBase"]
[SourceQuality "1"]
[TimeControl "40/5400+30:1800+30"]

1. e4 {[%emt 0:00:00]} b6 {[%emt 0:02:19]} 2. d4 {[%emt 0:00:24]} Bb7 {[%emt 0:00:02]} 3. Nc3 {[%emt 0:01:50]} e6 {[%emt 0:00:04]} 4. Nf3 {[%emt 0:01:36]} g6 {[%emt 0:02:09]} 5. Bd3 {[%emt 0:03:37]} Bg7 {[%emt 0:00:31]} 6. Bg5 {[%emt 0:02:59]} f6 {[%emt 0:05:19]} 7. Be3 {[%emt 0:01:05]} Nh6 {[%emt 0:01:46]} 8. h3 {[%emt 0:01:55]} Qe7 {[%emt 0:02:44]} 9. Qd2 {[%emt 0:02:04]} Nf7 {[%emt 0:00:04]} 10. O-O-O {[%emt 0:11:17]} a5 {[%emt 0:14:26]} 11. d5 {[%emt 0:08:50]} O-O {[%emt 0:01:28]} 12. Nd4 {[%emt 0:09:42]} e5 {[%emt 0:00:56]} 13. Nde2 {[%emt 0:02:34]} d6 {[%emt 0:07:23]} 14. h4 {[%emt 0:02:54]} Nd7 {[%emt 0:00:52]} 15. g3 {[%emt 0:04:22]} Nc5 {[%emt 0:00:48]} 16. f4 {[%emt 0:03:57]} Nxd3+ {[%emt 0:04:12]} 17. cxd3 {[%emt 0:01:42]} Bc8 {[%emt 0:02:05]} 18. Rdf1 {[%emt 0:04:50]} Bg4 {[%emt 0:01:25]} 19. Ng1 {[%emt 0:08:36]} a4 {[%emt 0:06:54]} 20. a3 {[%emt 0:01:57]} Qd7 {[%emt 0:11:32]} 21. Nf3 {[%emt 0:01:49]} b5 {[%emt 0:08:34]} 22. Na2 {[%emt 0:00:36]} c5 {[%emt 0:01:08]} 23. fxe5 {[%emt 0:05:23]} Nxe5 {[%emt 0:03:35]} 24. Nxe5 {[%emt 0:00:30]} fxe5 {[%emt 0:00:09]} 25. Rxf8+ {[%emt 0:11:49]} Rxf8 {[%emt 0:00:29]} 26. Qe1 {[%emt 0:01:07]} Rc8 {[%emt 0:05:54]} 27. Kb1 {[%emt 0:01:10]} Qc7 {[%emt 0:08:33]} 28. Rh2 {[%emt 0:01:33]} Rf8 {[%emt 0:00:52]} 29. Rf2 {[%emt 0:00:24]} Rxf2 {[%emt 0:01:02]} 30. Qxf2 {[%emt 0:00:17]} Qb7 {[%emt 0:01:48]} 31. Qd2 {[%emt 0:00:01]} Qc7 {[%emt 0:00:00]} 32. Qc2 {[%emt 0:01:57]} Qb7 {[%emt 0:00:04]} 33. Qd2 {[%emt 0:00:53]} Qc7 {[%emt 0:00:03]} 34. Nc1 {[%emt 0:01:25]} Bf3 {[%emt 0:02:50]} 35. Qf2 {[%emt 0:00:33]} Bg4 {[%emt 0:00:05]} 36. Qd2 {[%emt 0:00:26]} Bf3 {[%emt 0:00:08]} 37. Qf2 {[%emt 0:00:05]} Bg4 {[%emt 0:00:03]} 1/2-1/2

[Event "European-ch Seniors 2018"]
[Site "Drammen"]
[Date "2018.08.11"]
[Round "8"]
[White "Ashby, Anthony C"]
[Black "Fatalibekova, Elena"]
[Result "1/2-1/2"]
[ECO "A44"]
[WhiteElo "2055"]
[BlackElo "2181"]
[Annotator "NA"]
[PlyCount "29"]
[EventDate "2018.08.04"]
[EventType "swiss"]
[EventCountry "NOR"]
[SourceTitle "playchess.com"]
[Source "ChessBase"]
[SourceQuality "1"]
[TimeControl "40/5400+30:1800+30"]

1. d4 {[%emt 0:00:00]} c5 {[%emt 0:00:09]} 2. d5 {[%emt 0:00:05]} e5 {[%emt 0:00:42]} 3. c4 {[%emt 0:00:17]} d6 {[%emt 0:00:02]} 4. Nc3 {[%emt 0:00:34]} g6 {[%emt 0:01:41]} 5. e4 {[%emt 0:00:55]} Bg7 {[%emt 0:01:03]} 6. Nf3 {[%emt 0:03:57]} Ne7 {[%emt 0:02:44]} 7. h4 {[%emt 0:04:06]} Bg4 {[%emt 0:01:27]} 8. Be2 {[%emt 0:00:21]} h6 {[%emt 0:01:15]} 9. Nh2 {[%emt 0:04:27]} Bxe2 {[%emt 0:03:58]} 10. Qxe2 {[%emt 0:00:08]} Nd7 {[%emt 0:01:03]} 11. Be3 {[%emt 0:01:46]} a6 {[%emt 0:01:36]} 12. g4 {[%emt 0:01:21]} Qa5 {[%emt 0:01:26]} 13. Nf1 {[%emt 0:10:02]} h5 {[%emt 0:03:20]} 14. g5 {[%emt 0:01:02]} O-O-O {[%emt 0:01:28]} 15. O-O-O {[%emt 0:03:09]} 1/2-1/2

[Event "European-ch Seniors 2018"]
[Site "Drammen"]
[Date "2018.08.11"]
[Round "8"]
[White "Svensson, Leif 1940"]
[Black "Moen, Ole Christian"]
[Result "0-1"]
[ECO "D01"]
[WhiteElo "2052"]
[BlackElo "2228"]
[Annotator "NA"]
[PlyCount "80"]
[EventDate "2018.08.04"]
[EventType "swiss"]
[EventCountry "NOR"]
[SourceTitle "playchess.com"]
[Source "ChessBase"]
[SourceQuality "1"]
[TimeControl "40/5400+30:1800+30"]

1. d4 {[%emt 0:00:00]} Nf6 {[%emt 0:00:00]} 2. Nc3 {[%emt 0:00:00]} d5 {[%emt 0:00:00]} 3. Bg5 {[%emt 0:00:00]} c6 {[%emt 0:00:02]} 4. e3 {[%emt 0:00:11]} Nbd7 {[%emt 0:00:51]} 5. f4 {[%emt 0:00:53]} Qa5 {[%emt 0:01:08]} 6. Bd3 {[%emt 0:04:50]} Ne4 {[%emt 0:06:18]} 7. Nf3 {[%emt 0:02:03]} Nxc3 {[%emt 0:01:20]} 8. Qd2 {[%emt 0:00:25]} f6 {[%emt 0:00:05]} 9. Bh4 {[%emt 0:00:49]} e5 {[%emt 0:00:05]} 10. fxe5 {[%emt 0:00:49]} Bb4 {[%emt 0:00:31]} 11. O-O {[%emt 0:00:34]} Ne4 {[%emt 0:00:28]} 12. Qe2 {[%emt 0:00:28]} Be7 {[%emt 0:04:31]} 13. exf6 {[%emt 0:05:05]} Ndxf6 {[%emt 0:00:37]} 14. Ne5 {[%emt 0:00:20]} Be6 {[%emt 0:01:17]} 15. a3 {[%emt 0:01:18]} O-O-O {[%emt 0:03:13]} 16. c4 {[%emt 0:00:56]} g5 {[%emt 0:02:07]} 17. Be1 {[%emt 0:01:11]} Qc7 {[%emt 0:00:14]} 18. c5 {[%emt 0:00:41]} Rdf8 {[%emt 0:02:49]} 19. b4 {[%emt 0:00:49]} Nd7 {[%emt 0:00:13]} 20. Nf3 {[%emt 0:00:56]} g4 {[%emt 0:01:39]} 21. Bxe4 {[%emt 0:01:33]} dxe4 {[%emt 0:00:39]} 22. Nd2 {[%emt 0:00:08]} Rxf1+ {[%emt 0:00:17]} 23. Qxf1 {[%emt 0:00:28]} Rf8 {[%emt 0:00:12]} 24. Qe2 {[%emt 0:00:17]} Nf6 {[%emt 0:00:25]} 25. Bg3 {[%emt 0:00:24]} Qd7 {[%emt 0:00:09]} 26. a4 {[%emt 0:00:32]} Bd8 {[%emt 0:00:41]} 27. b5 {[%emt 0:03:40]} Bc7 {[%emt 0:00:45]} 28. Bh4 {[%emt 0:00:44]} Bd5 {[%emt 0:06:26]} 29. Rb1 {[%emt 0:04:09]} g3 {[%emt 0:01:20]} 30. h3 {[%emt 0:04:09]} Ne8 {[%emt 0:01:27]} 31. b6 {[%emt 0:04:05]} axb6 {[%emt 0:00:47]} 32. cxb6 {[%emt 0:00:07]} Rf2 {[%emt 0:00:41]} 33. Qe1 {[%emt 0:00:49]} Bd6 {[%emt 0:00:54]} 34. a5 {[%emt 0:01:15]} Ng7 {[%emt 0:01:55]} 35. a6 {[%emt 0:11:13]} bxa6 {[%emt 0:00:26]} 36. b7+ {[%emt 0:00:06]} Kb8 {[%emt 0:00:05]} 37. Nf1 {[%emt 0:01:10]} Nf5 {[%emt 0:03:42]} 38. Bxg3 {[%emt 0:10:08]} Ra2 {[%emt 0:04:51]} 39. Bxd6+ {[%emt 0:02:25]} Qxd6 {[%emt 0:00:09]} 40. g4 {[%emt 0:00:00]} Bc4 {[%emt 0:00:00]} 0-1

[Event "European-ch Seniors 2018"]
[Site "Drammen"]
[Date "2018.08.12"]
[Round "9"]
[White "Vorotnikov, Vladislav V"]
[Black "Karason, Askell O"]
[Result "1/2-1/2"]
[ECO "A45"]
[WhiteElo "2445"]
[BlackElo "2217"]
[Annotator "NA RC"]
[PlyCount "25"]
[EventDate "2018.08.04"]
[EventType "swiss"]
[EventCountry "NOR"]
[SourceTitle "playchess.com"]
[Source "ChessBase"]
[SourceQuality "1"]
[TimeControl "40/5400+30:1800+30"]

1. d4 {[%emt 0:00:00]} Nf6 {[%emt 0:00:00]} 2. Nc3 {[%emt 0:00:11]} d5 {[%emt 0:00:00]} 3. Bf4 {[%emt 0:00:21]} a6 {[%emt 0:00:09]} 4. e3 {[%emt 0:01:08]} e6 {[%emt 0:00:45]} 5. Nf3 {[%emt 0:02:04] LiveBook: 53 Partien} c5 $11 {[%emt 0:00:34]} 6. a3 {[%emt 0:01:52]} Nc6 {[%emt 0:01:02]} 7. h3 {[%emt 0:04:42]} Bd6 {[%emt 0:00:51]} 8. dxc5 {[%emt 0:03:05]} Bxc5 {[%emt 0:00:31]} 9. Bd3 {[%emt 0:00:26]} Bd6 {[%emt 0:02:07]} 10. Bxd6 {[%emt 0:06:17]} Qxd6 {[%emt 0:01:15]} 11. e4 {[%emt 0:07:29]} d4 {[%emt 0:05:06]} 12. Ne2 {[%emt 0:06:25]} e5 {[%emt 0:00:41]} 13. c3 {[%emt 0:04:04]} 1/2-1/2

[Event "European-ch Seniors 2018"]
[Site "Drammen"]
[Date "2018.08.12"]
[Round "9"]
[White "Blomstrom, Lars"]
[Black "Van den Bersselaar, Henri"]
[Result "1/2-1/2"]
[ECO "A06"]
[WhiteElo "2167"]
[BlackElo "1897"]
[Annotator "NA"]
[PlyCount "49"]
[EventDate "2018.08.04"]
[EventType "swiss"]
[EventCountry "NOR"]
[SourceTitle "playchess.com"]
[Source "ChessBase"]
[SourceQuality "1"]
[TimeControl "40/5400+30:1800+30"]

1. Nf3 {[%emt 0:00:00]} d5 {[%emt 0:00:00]} 2. g3 {[%emt 0:00:04]} Nf6 {[%emt 0:00:00]} 3. Bg2 {[%emt 0:00:06]} e6 {[%emt 0:02:00]} 4. O-O {[%emt 0:00:36]} c5 {[%emt 0:00:47]} 5. d3 {[%emt 0:00:44]} Be7 {[%emt 0:00:26]} 6. Nbd2 {[%emt 0:00:27]} Nc6 {[%emt 0:02:30]} 7. e4 {[%emt 0:02:12]} dxe4 {[%emt 0:01:45]} 8. dxe4 {[%emt 0:00:14]} O-O {[%emt 0:01:21]} 9. Re1 {[%emt 0:08:20]} Qc7 {[%emt 0:01:51]} 10. c3 {[%emt 0:07:44]} b6 {[%emt 0:06:51]} 11. Qe2 {[%emt 0:04:12]} Rd8 {[%emt 0:04:57]} 12. e5 {[%emt 0:09:13]} Nd7 {[%emt 0:00:32]} 13. Nf1 {[%emt 0:01:27]} Nf8 {[%emt 0:03:57]} 14. h4 {[%emt 0:00:37]} Bb7 {[%emt 0:00:39]} 15. h5 {[%emt 0:10:42]} Qd7 {[%emt 0:07:42]} 16. N1h2 {[%emt 0:10:28]} Qd3 {[%emt 0:01:29]} 17. Qxd3 {[%emt 0:00:54]} Rxd3 {[%emt 0:00:09]} 18. Bf1 {[%emt 0:05:10]} Rd5 {[%emt 0:08:14]} 19. Bc4 {[%emt 0:06:21]} Rd7 {[%emt 0:00:00]} 20. Bf4 {[%emt 0:03:37]} Rad8 {[%emt 0:01:48]} 21. Be2 {[%emt 0:06:33]} h6 {[%emt 0:05:12]} 22. Ng4 {[%emt 0:02:19]} Nh7 {[%emt 0:05:54]} 23. Rad1 {[%emt 0:00:42]} Na5 {[%emt 0:07:07]} 24. Rxd7 {[%emt 0:02:16]} Rxd7 {[%emt 0:01:21]} 25. Rd1 {[%emt 0:02:52]} 1/2-1/2

[Event "European-ch Seniors 2018"]
[Site "Drammen"]
[Date "2018.08.12"]
[Round "9"]
[White "Ludviksson, Johannes"]
[Black "Furman, Boris"]
[Result "1-0"]
[ECO "D02"]
[WhiteElo "2024"]
[BlackElo "2242"]
[Annotator "NA RC"]
[PlyCount "93"]
[EventDate "2018.08.04"]
[EventType "swiss"]
[EventCountry "NOR"]
[SourceTitle "playchess.com"]
[Source "ChessBase"]
[SourceQuality "1"]
[TimeControl "40/5400+30:1800+30"]

1. Nf3 {[%emt 0:00:00]} d5 {[%emt 0:00:00]} 2. d4 {[%emt 0:00:00]} Nf6 {[%emt 0:00:00]} 3. Bf4 {[%emt 0:00:00]} e6 {[%emt 0:00:20]} 4. e3 {[%emt 0:00:00]} c5 {[%emt 0:00:34]} 5. c3 {[%emt 0:00:09]} Nc6 {[%emt 0:00:11]} 6. Nbd2 {[%emt 0:01:14]} Bd6 {[%emt 0:00:11]} 7. Bxd6 {[%emt 0:00:28]} Qxd6 {[%emt 0:00:07]} 8. Bb5 {[%emt 0:01:08]} O-O {[%emt 0:00:44]} 9. O-O {[%emt 0:00:08]} Nd7 {[%emt 0:11:50]} 10. a3 {[%emt 0:14:39]} e5 {[%emt 0:03:01]} 11. dxe5 {[%emt 0:05:34]} Ndxe5 {[%emt 0:04:20]} 12. Nxe5 {[%emt 0:01:03]} Qxe5 {[%emt 0:04:10]} 13. Nf3 {[%emt 0:00:50]} Qh5 {[%emt 0:02:03]} 14. Qa4 {[%emt 0:05:56]} Bd7 {[%emt 0:08:49]} 15. Rad1 {[%emt 0:02:26]} Rfe8 {[%emt 0:08:44]} 16. Qf4 {[%emt 0:06:06]} Bg4 {[%emt 0:13:41]} 17. Be2 {[%emt 0:08:16]} Re4 {[%emt 0:08:14]} 18. Qg3 {[%emt 0:02:03]} Ne7 {[%emt 0:08:27]} 19. h3 {[%emt 0:02:21]} Be6 {[%emt 0:02:31]} 20. Qd6 {[%emt 0:12:22]} Ng6 {[%emt 0:03:32]} 21. Nd4 {[%emt 0:09:47]} Qg5 {[%emt 0:01:47]} 22. Nxe6 {[%emt 0:00:24]} fxe6 {[%emt 0:00:19]} 23. Bd3 {[%emt 0:02:58]} Rh4 {[%emt 0:01:27]} 24. Qxe6+ {[%emt 0:00:30]} Kh8 {[%emt 0:00:48]} 25. Bxg6 {[%emt 0:00:09]} hxg6 {[%emt 0:00:24]} 26. Rxd5 {[%emt 0:00:08]} Qf6 {[%emt 0:01:06]} 27. Qxf6 {[%emt 0:00:53]} gxf6 {[%emt 0:00:04]} 28. Rfd1 {[%emt 0:00:21]} Re4 {[%emt 0:03:50]} 29. Rd8+ {[%emt 0:00:21]} Re8 {[%emt 0:00:12]} 30. R8d7 {[%emt 0:00:15]} b6 {[%emt 0:00:54]} 31. Kf1 {[%emt 0:00:05]} g5 {[%emt 0:03:44]} 32. R1d6 {[%emt 0:00:26]} Rf8 {[%emt 0:00:42]} 33. Ke2 {[%emt 0:00:16]} Kg8 {[%emt 0:00:08]} 34. Re7 {[%emt 0:00:22]} Rf7 {[%emt 0:00:32]} 35. Red7 {[%emt 0:01:12]} Kg7 {[%emt 0:00:15]} 36. e4 {[%emt 0:00:38]} Kg6 {[%emt 0:02:33]} 37. Ke3 {[%emt 0:00:18]} Rff8 {[%emt 0:00:21]} 38. Re6 {[%emt 0:02:10]} Rf7 {[%emt 0:00:21]} 39. Rdd6 {[%emt 0:00:25]} g4 {[%emt 0:04:15]} 40. hxg4 {[%emt 0:00:00]} Kg5 {[%emt 0:00:00]} 41. Kf3 {[%emt 0:01:09]} Rh8 {[%emt 0:00:32]} 42. Rd5+ {[%emt 0:00:24]} Kg6 {[%emt 0:00:26]} 43. g5 {[%emt 0:00:12]} Rh1 {[%emt 0:01:38]} 44. Rxf6+ {[%emt 0:00:11]} Rxf6+ {[%emt 0:00:06]} 45. gxf6 {[%emt 0:00:07]} Kxf6 {[%emt 0:00:11]} 46. Rd7 {[%emt 0:00:40]} Rb1 {[%emt 0:00:11]} 47. Rd2 {[%emt 0:00:08]} 1-0